fUST/lending_fUST_20250802
["ID","MTS","AMOUNT","RATE_DAILY","PERIOD"]
[376724682,1754088664307,-1117.62,0.00022805,2]
[376724683,1754088664318,-912.55,0.00022805,2]
[376724684,1754088664327,-901.04,0.00022805,2]
[376724685,1754088664337,-577.28,0.00022805,2]
[376724686,1754088664346,-460.0,0.00022805,2]
[376724687,1754088664356,-442.63,0.00022806,2]
[376724688,1754088664369,-460.0,0.00022806,2]
[376724689,1754088664379,-763.6,0.00022806,2]
[376724690,1754088664389,-460.0,0.00022806,2]
[376724691,1754088664399,-689.07,0.00022806,2]
[376724692,1754088664408,-998.2,0.00022806,2]
[376724693,1754088664417,-1571.55,0.00022806,2]
[376724694,1754088664427,-577.96,0.00022806,2]
[376724695,1754088664436,-568.71,0.00022806,2]
[376724696,1754088664445,-460.0,0.00022806,2]
[376724697,1754088664454,-460.0,0.00022806,2]
[376724698,1754088664463,-1155.31,0.00022806,2]
[376724699,1754088664472,-460.0,0.00022806,2]
[376724700,1754088664482,-1345.52,0.00022806,2]
[376724701,1754088664491,-460.0,0.00022806,2]
[376724702,1754088664501,-1075.67,0.00022806,2]
[376724703,1754088664510,-71.98964925,0.00022806,2]
[376724704,1754088664638,-460.0,0.00019243,2]
[376724705,1754088664647,-460.0,0.00019245,2]
[376724706,1754088664657,-469.43909593,0.00019519,2]
[376724707,1754088664666,-460.0,0.0001952,2]
[376724708,1754088664676,-460.0,0.00019794,2]
[376724709,1754088664685,-460.0,0.00020068,2]
[376724710,1754088664694,-318.76153844,0.00020342,2]
[376724711,1754088664703,-866.92035075,0.00022806,2]
[376724712,1754088664712,-2094.03,0.00022806,2]
[376724713,1754088664722,-460.0,0.00022806,2]
[376724714,1754088664732,-8743.45,0.00022806,2]
[376724715,1754088664741,-460.0,0.00022806,2]
[376724716,1754088664751,-460.0,0.00022806,2]
[376724717,1754088664761,-460.0,0.00022806,2]
[376724718,1754088664770,-460.0,0.00022806,2]
[376724719,1754088664782,-460.0,0.00022806,2]
[376724720,1754088664791,-915.89,0.00022806,2]
[376724721,1754088664800,-460.0,0.00022806,2]
[376724722,1754088664809,-460.0,0.00022806,2]
[376724723,1754088664819,-460.0,0.00022806,2]
[376724724,1754088664828,-918.67,0.00022806,2]
[376724725,1754088664837,-843.32,0.00022806,2]
[376724726,1754088664847,-781.13,0.00022806,2]
[376724727,1754088664858,-688.21,0.00022806,2]
[376724728,1754088664871,-1291.59,0.00022806,2]
[376724729,1754088664880,-942.84,0.00022806,2]
[376724730,1754088664890,-460.0,0.00022807,2]
[376724731,1754088664900,-460.0,0.00022807,2]
[376724732,1754088664909,-4484.45,0.00022807,2]
[376724733,1754088664919,-460.0,0.00022807,2]
[376724734,1754088664929,-896.45,0.00022807,2]
[376724735,1754088664938,-728.64,0.00022807,2]
[376724736,1754088664948,-264.2683896,0.00022807,2]
[376724737,1754088664957,-562.16,0.00022807,2]
[376724738,1754088664967,-566.75,0.00022807,2]
[376724739,1754088664976,-728.58,0.00022807,2]
[376724740,1754088664985,-576.79,0.00022807,2]
[376724741,1754088664994,-475.55,0.00022807,2]
[376724742,1754088665004,-879.31,0.00022807,2]
[376724743,1754088665013,-636.2,0.00022807,2]
[376724744,1754088665022,-541.33558072,0.00022807,2]
[376724745,1754088665031,-1383.57,0.00022807,2]
[376724746,1754088665041,-460.0,0.00022807,2]
[376724747,1754088665050,-1043.29,0.00022807,2]
[376724748,1754088665059,-233.11840126,0.00022807,2]
[376724749,1754088665068,-460.0,0.00022807,2]
[376724750,1754088665077,-803.23,0.00022807,2]
[376724751,1754088665087,-463.81,0.00022807,2]
[376724752,1754088665096,-500.0,0.00022807,2]
[376724753,1754088665105,-460.0,0.00022807,2]
[376724754,1754088665114,-828.95,0.00022807,2]
[376724755,1754088665125,-1212.03,0.00022807,2]
[376724756,1754088665135,-1363.97,0.00022807,2]
[376724757,1754088665145,-673.23,0.00022807,2]
[376724758,1754088665154,-841.34,0.00022807,2]
[376724759,1754088665164,-584.48,0.00022807,2]
[376724760,1754088665174,-1080.77,0.00022807,2]
[376724761,1754088665183,-602.17199929,0.00022807,2]
[376724762,1754088665192,-708.83,0.00022807,2]
[376724763,1754088665201,-460.0,0.00022807,2]
[376724764,1754088665211,-986.67,0.00022807,2]
[376724765,1754088665220,-2439.65,0.00022807,2]
[376724766,1754088665229,-514.39653052,0.00022808,2]
[376724767,1754088665241,-296.98346948,0.00022808,2]
[376724768,1754088665250,-460.0,0.00022808,2]
[376724769,1754088665259,-669.71,0.00022808,2]
[376724770,1754088665269,-460.0,0.00022808,2]
[376724771,1754088665278,-612.39,0.00022808,2]
[376724772,1754088665287,-475.61,0.00022808,2]
[376724773,1754088665296,-464.31,0.00022808,2]
[376724774,1754088665305,-494.06,0.00022808,2]
[376724775,1754088665315,-460.0,0.00022808,2]
[376724776,1754088665324,-967.75,0.00022808,2]
[376724777,1754088665333,-1789.64,0.00022808,2]
[376724778,1754088665342,-460.0,0.00022809,2]
[376724779,1754088665352,-460.0,0.00022809,2]
[376724780,1754088665362,-460.0,0.00022809,2]
[376724781,1754088665374,-2073.82,0.00022809,2]
[376724782,1754088665384,-543.12,0.00022809,2]
[376724783,1754088665394,-460.0,0.0002281,2]
[376724784,1754088665406,-460.0,0.0002281,2]
[376724785,1754088665416,-588.51,0.0002281,2]
[376724786,1754088665425,-456.50651438,0.0002281,2]
[376724787,1754088665434,-917.78,0.0002281,2]
[376724788,1754088665443,-4366.32,0.0002281,2]
[376724789,1754088665453,-2293.28,0.00022811,2]
[376724790,1754088665463,-568.25594974,0.00022811,2]
[376724791,1754088665475,-169.18405026,0.00022811,2]
[376724792,1754088665486,-500.0,0.00022812,2]
[376724793,1754088665495,-1138.0,0.00022812,2]
[376724794,1754088665504,-587.0,0.0002285,2]
[376724795,1754088665514,-2172.01594981,0.000229,2]
[376724796,1754088665569,-460.0,0.00019244,2]
[376724797,1754088665578,-1692.95300119,0.000229,2]
[376724798,1754088665587,-8028.12307958,0.000229,7]
[376724799,1754088665599,-4230.23147854,0.000229,7]
[376724800,1754088665610,-411.09067563,0.000229,7]
[376724801,1754088665623,-15375.19973126,0.000229,7]
[376724802,1754088665632,-160.0,0.000229,7]
[376724803,1754088665643,-160.0,0.00023,3]
[376724804,1754088665652,-160.0,0.00023,3]
[376724805,1754088665661,-160.0,0.00023,3]
[376724806,1754088665670,-160.0,0.00023,3]
[376724807,1754088665679,-160.0,0.00023,2]
[376724808,1754088665689,-216.22890603,0.00023,3]
[376724809,1754088665698,-160.0,0.00023,3]
[376724810,1754088665709,-160.0,0.00023,3]
[376724811,1754088665718,-841.53699354,0.00023,3]
[376724812,1754088665728,-231.52694941,0.00023,3]
[376724813,1754088665737,-160.0,0.00023,3]
[376724814,1754088665747,-168.0,0.00023014,7]
[376724815,1754088665757,-450.0,0.00023014,2]
[376724816,1754088665767,-179.0,0.00023014,7]
[376724817,1754088665778,-1238.22654209,0.00023028,2]
[376724818,1754088665789,-1000.0,0.00023068,2]
[376724819,1754088665798,-1680.0,0.00023072,2]
[376724820,1754088665807,-460.0,0.00023079,2]
[376724821,1754088665817,-1701.56,0.00023079,2]
[376724822,1754088665827,-1115.94,0.00023079,2]
[376724823,1754088665836,-852.62,0.00023079,2]
[376724824,1754088665846,-171.84836875,0.00023079,2]
[376724825,1754088665945,-288.15163125,0.00023079,2]
[376724826,1754088665955,-869.0,0.00023079,2]
[376724827,1754088665965,-464.12,0.00023079,2]
[376724828,1754088665974,-1117.62,0.00023079,2]
[376724829,1754088665982,-912.55,0.00023079,2]
[376724830,1754088665992,-901.04,0.00023079,2]
[376724831,1754088666001,-577.28,0.00023079,2]
[376724832,1754088666010,-460.0,0.00023079,2]
[376724833,1754088666019,-460.0,0.0002308,2]
[376724834,1754088666028,-763.6,0.0002308,2]
[376724835,1754088666037,-460.0,0.0002308,2]
[376724836,1754088666046,-689.07,0.0002308,2]
[376724837,1754088666055,-998.2,0.0002308,2]
[376724838,1754088666064,-1571.55,0.0002308,2]
[376724839,1754088666074,-577.96,0.0002308,2]
[376724840,1754088666083,-568.71,0.0002308,2]
[376724841,1754088666092,-11.14836875,0.0002308,2]
[376724842,1754088666103,-448.85163125,0.0002308,2]
[376724843,1754088666198,-1155.31,0.0002308,2]
[376724844,1754088666208,-460.0,0.0002308,2]
[376724845,1754088666218,-1345.52,0.0002308,2]
[376724846,1754088666228,-460.0,0.0002308,2]
[376724847,1754088666238,-1075.67,0.0002308,2]
[376724848,1754088666247,-938.91,0.0002308,2]
[376724849,1754088666256,-2094.03,0.0002308,2]
[376724850,1754088666265,-460.0,0.0002308,2]
[376724851,1754088666275,-7234.86029645,0.0002308,2]
[376724852,1754088666312,-1508.58970355,0.0002308,2]
[376724853,1754088666322,-460.0,0.0002308,2]
[376724854,1754088666331,-381.05654803,0.0002308,2]
[376724855,1754088666340,-460.0,0.0002308,2]
[376724856,1754088666350,-460.0,0.0002308,2]
[376724857,1754088666359,-65.99601902,0.0002308,2]
[376724858,1754088666373,-394.00398098,0.0002308,2]
[376724859,1754088666382,-915.89,0.0002308,2]
[376724860,1754088666392,-226.14923294,0.0002308,2]
[376724861,1754088666487,158.988164,0.00013699,2]
[376724862,1754088698219,250.0,0.00019178,2]
[376724863,1754088715964,183.07921,0.0001877,2]
[376724864,1754088763413,2282.61438048,0.00019145,2]
[376724866,1754088905502,400.0,0.00024658,120]
[376724867,1754088989621,150.5,0.00021973,120]
[376724868,1754088990081,150.5,0.00021963,120]
[376724869,1754088990550,150.5,0.00021953,120]
[376724870,1754088991105,150.5,0.0002438,120]
[376724871,1754088991590,150.5,0.0002437,120]
[376724872,1754088992131,150.5,0.0002436,120]
[376724873,1754088992586,271.43,0.0002486,120]
[376724874,1754089016217,1157.9009873,0.00027087,30]
[376724875,1754089043122,228.5,0.00027087,30]
[376724877,1754089358918,1697.5,0.00027091,30]
[376724878,1754089396864,373.76190386,0.00019142,2]
[376724879,1754089519448,400.0,0.00024658,120]
[376724880,1754089523609,551.272198,0.00018245,2]
[376724882,1754089602813,161.592414,0.00013699,2]
[376724908,1754089831953,-300.0,0.0001924,2]
[376724910,1754089831964,-1200.0,0.0001924,2]
[376724912,1754089831975,-160.0,0.00019241,2]
[376724914,1754089831985,-1094.63,0.00019241,2]
[376724916,1754089831996,-464.97,0.00019241,2]
[376724918,1754089832007,-460.0,0.00019241,2]
[376724920,1754089832018,-45.52043019,0.00019241,2]
[376724927,1754089832105,-414.47956981,0.00019241,2]
[376724928,1754089832116,-664.39,0.00019241,2]
[376724929,1754089832128,-460.0,0.00019241,2]
[376724931,1754089832140,-460.0,0.00019241,2]
[376724933,1754089832151,-460.0,0.00019241,2]
[376724935,1754089832163,-460.0,0.00019241,2]
[376724936,1754089832175,-460.0,0.00019241,2]
[376724937,1754089832186,-545.19,0.00019241,2]
[376724938,1754089832196,-479.69,0.00019241,2]
[376724939,1754089832208,-460.0,0.00019241,2]
[376724940,1754089832219,-460.0,0.00019241,2]
[376724941,1754089832230,-469.06,0.00019241,2]
[376724942,1754089832241,-776.41,0.00019241,2]
[376724943,1754089832252,-460.0,0.00019241,2]
[376724944,1754089832263,-5283.56415387,0.00019241,2]
[376724945,1754089832855,400.0,0.00024658,120]
[376724970,1754089839071,-460.0,0.00019241,2]
[376724971,1754089839082,-1166.29220823,0.00019241,2]
[376724972,1754089839091,-460.0,0.00019242,2]
[376724973,1754089839100,-460.0,0.00019242,2]
[376724974,1754089839109,-460.0,0.00019242,2]
[376724975,1754089839118,-460.0,0.00019242,2]
[376724976,1754089839128,-460.0,0.00019242,2]
[376724977,1754089839137,-460.0,0.00019242,2]
[376724978,1754089839147,-460.0,0.00019242,2]
[376724980,1754089839155,-460.0,0.00019242,2]
[376724981,1754089839165,-460.0,0.00019242,2]
[376724982,1754089839175,-464.93326887,0.00019242,2]
[376724984,1754089839185,-460.0,0.00019242,2]
[376724986,1754089839195,-460.0,0.00019242,2]
[376724988,1754089839204,-460.0,0.00019242,2]
[376724990,1754089839213,-376.40262005,0.00019242,2]
[376724992,1754089839222,-460.0,0.00019242,2]
[376724994,1754089839231,-460.0,0.00019242,2]
[376724996,1754089839240,-460.0,0.00019242,2]
[376724998,1754089839249,-460.0,0.00019242,2]
[376725000,1754089839259,-460.0,0.00019242,2]
[376725002,1754089839268,-460.0,0.00019242,2]
[376725004,1754089839278,-460.0,0.00019242,2]
[376725006,1754089839287,-460.0,0.00019242,2]
[376725008,1754089839297,-460.0,0.00019242,2]
[376725010,1754089839306,-157.34516335,0.00019242,2]
[376725012,1754089839316,-460.0,0.00019242,2]
[376725014,1754089839325,-460.0,0.00019242,2]
[376725016,1754089839336,-460.0,0.00019242,2]
[376725018,1754089839345,-460.0,0.00019242,2]
[376725020,1754089839355,-460.0,0.00019242,2]
[376725022,1754089839365,-460.0,0.00019242,2]
[376725024,1754089839374,-460.0,0.00019242,2]
[376725026,1754089839383,-460.0,0.00019242,2]
[376725028,1754089839392,-460.0,0.00019242,2]
[376725030,1754089839401,-460.0,0.00019242,2]
[376725032,1754089839410,-460.0,0.00019242,2]
[376725034,1754089839419,-460.0,0.00019242,2]
[376725036,1754089839428,-460.0,0.00019242,2]
[376725038,1754089839437,-460.0,0.00019242,2]
[376725039,1754089839446,-460.0,0.00019242,2]
[376725043,1754089839456,-460.0,0.00019242,2]
[376725045,1754089839466,-460.0,0.00019242,2]
[376725047,1754089839476,-460.0,0.00019242,2]
[376725049,1754089839486,-460.0,0.00019242,2]
[376725051,1754089839495,-460.0,0.00019242,2]
[376725053,1754089839504,-460.0,0.00019242,2]
[376725054,1754089839513,-415.74493917,0.00019242,2]
[376725058,1754089839530,-460.0,0.00019242,2]
[376725061,1754089839543,-460.0,0.00019242,2]
[376725064,1754089839553,-460.0,0.00019242,2]
[376725066,1754089839564,-460.0,0.00019242,2]
[376725068,1754089839574,-559.73,0.00019242,2]
[376725070,1754089839585,-815.42,0.00019242,2]
[376725072,1754089839595,-460.0,0.00019242,2]
[376725074,1754089839605,-460.0,0.00019242,2]
[376725076,1754089839615,-460.0,0.00019242,2]
[376725078,1754089839625,-460.0,0.00019242,2]
[376725080,1754089839634,-460.0,0.00019242,2]
[376725082,1754089839644,-460.0,0.00019242,2]
[376725084,1754089839654,-486.53,0.00019242,2]
[376725086,1754089839664,-460.0,0.00019242,2]
[376725088,1754089839674,-586.39,0.00019242,2]
[376725090,1754089839683,-460.0,0.00019242,2]
[376725092,1754089839693,-930.02,0.00019242,2]
[376725094,1754089839703,-460.0,0.00019242,2]
[376725096,1754089839713,-4261.74,0.00019242,2]
[376725098,1754089839723,-495.51,0.00019242,2]
[376725100,1754089839733,-460.0,0.00019242,2]
[376725102,1754089839742,-460.0,0.00019242,2]
[376725104,1754089839752,-460.0,0.00019242,2]
[376725106,1754089839761,-460.0,0.00019242,2]
[376725108,1754089839771,-460.0,0.00019242,2]
[376725110,1754089839780,-460.0,0.00019242,2]
[376725112,1754089839790,-460.0,0.00019242,2]
[376725114,1754089839800,-699.05,0.00019242,2]
[376725116,1754089839810,-180.10530156,0.00019242,2]
[376725118,1754089839821,-1207.13,0.00019242,2]
[376725120,1754089839831,-460.0,0.00019242,2]
[376725122,1754089839841,-460.0,0.00019242,2]
[376725124,1754089839851,-488.66253286,0.00019242,2]
[376725126,1754089839860,-460.0,0.00019242,2]
[376725128,1754089839870,-460.0,0.00019242,2]
[376725130,1754089839879,-1862.68,0.00019242,2]
[376725132,1754089839888,-460.0,0.00019242,2]
[376725134,1754089839897,-353.76254315,0.00019242,2]
[376725136,1754089839907,-460.0,0.00019242,2]
[376725138,1754089839917,-461.26980167,0.00019242,2]
[376725140,1754089839926,-460.0,0.00019242,2]
[376725142,1754089839936,-460.0,0.00019242,2]
[376725144,1754089839945,-379.40167366,0.00019242,2]
[376725146,1754089839954,-460.0,0.00019242,2]
[376725148,1754089839965,-460.0,0.00019242,2]
[376725150,1754089839975,-460.0,0.00019242,2]
[376725152,1754089839984,-460.0,0.00019242,2]
[376725154,1754089839994,-735.57,0.00019242,2]
[376725156,1754089840003,-460.0,0.00019242,2]
[376725158,1754089840013,-460.0,0.00019242,2]
[376725160,1754089840022,-460.0,0.00019242,2]
[376725162,1754089840032,-460.0,0.00019242,2]
[376725164,1754089840042,-460.0,0.00019242,2]
[376725167,1754089840054,-992.75,0.00019242,2]
[376725169,1754089840064,-460.0,0.00019242,2]
[376725173,1754089840073,-460.0,0.00019242,2]
[376725176,1754089840083,-460.0,0.00019242,2]
[376725179,1754089840093,-540.39,0.00019242,2]
[376725182,1754089840103,-2186.96,0.00019242,2]
[376725184,1754089840112,-460.0,0.00019242,2]
[376725187,1754089840123,-460.0,0.00019242,2]
[376725190,1754089840132,-618.13,0.00019242,2]
[376725192,1754089840142,-191.98630751,0.00019243,2]
[376725195,1754089840151,-460.0,0.00019243,2]
[376725198,1754089840164,-460.0,0.00019243,2]
[376725200,1754089840173,-569.13993882,0.00019243,2]
[376725202,1754089840182,-466.81932942,0.00019243,2]
[376725204,1754089840191,-460.0,0.00019243,2]
[376725206,1754089840200,-460.0,0.00019243,2]
[376725209,1754089840210,-460.0,0.00019243,2]
[376725212,1754089840219,-460.0,0.00019243,2]
[376725215,1754089840229,-460.0,0.00019243,2]
[376725218,1754089840238,-305.83545067,0.00019243,2]
[376725221,1754089840247,-460.0,0.00019243,2]
[376725224,1754089840258,-460.0,0.00019243,2]
[376725227,1754089840267,-460.0,0.00019243,2]
[376725230,1754089840277,-460.0,0.00019243,2]
[376725233,1754089840287,-435.08985721,0.00019243,2]
[376725236,1754089840296,-451.89956249,0.00019243,2]
[376725267,1754089840495,-8.10043751,0.00019243,2]
[376725269,1754089840504,-460.0,0.00019243,2]
[376725271,1754089840514,-468.86210391,0.00019243,2]
[376725273,1754089840523,-460.0,0.00019243,2]
[376725275,1754089840532,-460.0,0.00019243,2]
[376725277,1754089840542,-463.84916918,0.00019243,2]
[376725279,1754089840551,-460.0,0.00019243,2]
[376725281,1754089840562,-460.0,0.00019243,2]
[376725283,1754089840571,-460.0,0.00019243,2]
[376725285,1754089840582,-460.0,0.00019243,2]
[376725287,1754089840592,-851.65,0.00019243,2]
[376725289,1754089840601,-460.0,0.00019243,2]
[376725291,1754089840610,-460.0,0.00019243,2]
[376725293,1754089840619,-460.0,0.00019243,2]
[376725295,1754089840629,-460.0,0.00019243,2]
[376725297,1754089840638,-460.0,0.00019243,2]
[376725299,1754089840647,-460.0,0.00019243,2]
[376725301,1754089840656,-460.0,0.00019243,2]
[376725303,1754089840666,-460.0,0.00019243,2]
[376725305,1754089840675,-460.0,0.00019243,2]
[376725307,1754089840684,-460.52552984,0.00019243,2]
[376725309,1754089840693,-460.0,0.00019243,2]
[376725311,1754089840702,-460.0,0.00019243,2]
[376725313,1754089840711,-460.0,0.00019243,2]
[376725315,1754089840720,-460.0,0.00019243,2]
[376725317,1754089840729,-787.47,0.00019243,2]
[376725319,1754089840738,-460.0,0.00019243,2]
[376725321,1754089840747,-522.15,0.00019243,2]
[376725323,1754089840757,-460.0,0.00019243,2]
[376725325,1754089840766,-460.0,0.00019243,2]
[376725327,1754089840775,-460.0,0.00019243,2]
[376725329,1754089840784,-460.0,0.00019243,2]
[376725331,1754089840793,-460.0,0.00019243,2]
[376725333,1754089840802,-460.0,0.00019243,2]
[376725335,1754089840811,-460.0,0.00019243,2]
[376725337,1754089840821,-460.0,0.00019243,2]
[376725340,1754089840832,-280.10335076,0.00019243,2]
[376725343,1754089840841,-297.33865656,0.00019243,2]
[376725345,1754089840849,-214.84366844,0.00019243,2]
[376725347,1754089840861,-245.15633156,0.00019243,2]
[376725349,1754089840870,-460.0,0.00019243,2]
[376725351,1754089840879,-460.0,0.00019243,2]
[376725353,1754089840888,-632.18,0.00019243,2]
[376725355,1754089840897,-460.0,0.00019243,2]
[376725357,1754089840906,-242.66366844,0.00019243,2]
[376725361,1754089840939,-277.712,0.00019243,2]
[376725364,1754089840950,-258.11433156,0.00019243,2]
[376725366,1754089840959,-460.0,0.00019243,2]
[376725368,1754089840968,-20.55336214,0.00019243,2]
[376726929,1754089857058,5000.0,0.000192,2]
[376728211,1754089870111,327.04166593,0.00019145,2]
[376730423,1754089902742,177.94208725,0.00019141,2]
[376730424,1754089948091,267.0,0.0002191,120]
[376730425,1754089948540,267.0,0.000219,120]
[376730426,1754089948979,267.0,0.0002189,120]
[376730427,1754089949423,267.0,0.0002437,120]
[376730428,1754089949870,267.0,0.0002436,120]
[376730429,1754089950309,267.0,0.0002435,120]
[376730430,1754089953189,267.0,0.00024888,120]
[376730431,1754089953670,267.0,0.00024878,120]
[376730432,1754089978335,773.58,0.00027094,30]
[376730433,1754090006625,151.0,0.00027094,30]
[376730434,1754090083303,675.4986276,0.000189,2]
[376730435,1754090140681,400.0,0.00024658,120]
[376730438,1754090427574,275.636099,0.00018242,2]
[376730439,1754090447009,279.74611745,0.000189,2]
[376730440,1754090467413,359.87566451,0.0001914,2]
[376730441,1754090637425,683.00458895,0.00019145,2]
[376730462,1754090757975,426.22575704,0.00021918,120]
[376730467,1754090863034,797.1906177,0.00027114,120]
[376730468,1754090864647,277.539762,0.00027114,120]
[376730469,1754090886021,854.68612953,0.00027114,120]
[376730470,1754090890674,232.36493111,0.00027114,120]
[376730471,1754090891850,507.40014706,0.00027114,120]
[376730472,1754090892410,972.20794162,0.00027114,120]
[376730473,1754090894690,1050.45182265,0.00027114,120]
[376730474,1754090898115,188.0,0.0002,120]
[376730475,1754090900857,923.17409368,0.00027114,120]
[376730476,1754090902967,257.2732515,0.00027114,120]
[376730477,1754090903951,314.23465061,7e-05,120]
[376730478,1754090904083,571.4861566,0.00027114,120]
[376730480,1754090908387,326.65316251,0.00027114,120]
[376730481,1754090908755,851.51415978,0.00027114,120]
[376730482,1754090909706,693.78642225,0.00027114,120]
[376730483,1754090911001,240.82074905,0.00027114,120]
[376730484,1754090911644,946.29386768,0.00025,120]
[376730485,1754090911745,335.39163289,0.00027114,120]
[376730486,1754090912348,244.0693513,0.00027114,120]
[376730487,1754090912569,575.82639134,0.0002,120]
[376730488,1754090912941,190.11494859,0.00027114,30]
[376730489,1754090913626,244.76825756,0.00027114,30]
[376730490,1754090913953,628.88004412,0.00027114,30]
[376730491,1754090914183,1109.37124719,0.00027114,120]
[376730492,1754090914747,477.68445749,0.00024108,120]
[376730493,1754090914810,1164.8805805,0.00025,120]
[376730494,1754090915903,344.17490683,0.00027114,120]
[376730495,1754090916033,1105.04959839,0.00027114,60]
[376730498,1754090917111,1015.52067971,0.00027114,120]
[376730499,1754090917581,468.06161726,0.00027114,120]
[376730500,1754090918363,588.29899092,0.00027114,120]
[376730501,1754090918722,429.8910904,0.00027114,120]
[376730502,1754090918801,217.59426728,0.00027114,120]
[376730503,1754090919879,319.44696293,0.00027114,120]
[376730504,1754090920046,205.34666861,0.00027114,120]
[376730505,1754090920201,179.17291579,0.00027114,30]
[376730506,1754090920257,512.00797166,0.00027114,30]
[376730507,1754090920510,595.64201609,0.00024,120]
[376730508,1754090921438,1137.52129874,0.00027114,120]
[376730509,1754090921616,163.8185979,0.00027114,120]
[376730510,1754090921718,220.47175341,0.0001536,120]
[376730511,1754090922112,503.76512,0.00027114,120]
[376730512,1754090922198,536.44966063,0.00027114,120]
[376730513,1754090922284,632.7011627,0.000245,120]
[376730514,1754090922744,1055.78695774,0.00024,120]
[376730515,1754090922956,1020.3847049,0.0002,120]
[376730516,1754090923197,221.09892414,0.00027114,120]
[376730520,1754090924098,1078.31915759,0.00027114,120]
[376730521,1754090924224,706.7650441,0.00026,120]
[376730522,1754090924284,983.69385949,0.00027114,120]
[376730523,1754090924384,286.19382796,0.00024,120]
[376730524,1754090924608,422.75794786,0.00025,120]
[376730526,1754090924924,300.0,0.00027114,30]
[376730527,1754090924986,406.82795561,0.00027114,120]
[376730528,1754090925169,185.64487049,0.00027114,120]
[376730530,1754090925501,265.89074782,0.00023,120]
[376730531,1754090925700,512.53831752,0.00027114,120]
[376730534,1754090977497,546.40367116,0.00019143,2]
[376730587,1754091032243,-300.0,0.0001923,2]
[376730589,1754091032253,-300.0,0.0001923,2]
[376730591,1754091032262,-300.0,0.0001923,2]
[376730593,1754091032272,-1200.0,0.0001923,2]
[376730594,1754091032281,-2424.26,0.00019231,3]
[376730596,1754091032290,-1212.13,0.00019231,3]
[376730598,1754091032300,-606.07,0.00019231,3]
[376730599,1754091032310,-530.25,0.00019238,2]
[376730601,1754091032319,-526.08,0.00019238,2]
[376730603,1754091032329,-904.57,0.00019238,2]
[376730604,1754091032339,-460.0,0.00019238,2]
[376730606,1754091032348,-460.0,0.00019238,2]
[376730608,1754091032357,-460.0,0.00019238,2]
[376730610,1754091032367,-460.0,0.00019238,2]
[376730612,1754091032376,-460.0,0.00019238,2]
[376730613,1754091032386,-460.0,0.00019238,2]
[376730615,1754091032397,-6367.77903436,0.00019239,2]
[376730617,1754091032409,-643.8850153,0.00019239,2]
[376730619,1754091032420,-4952.40098618,0.00019239,2]
[376730620,1754091032431,-30611.76505798,0.00019239,2]
[376730622,1754091032441,-1626.44,0.00019239,2]
[376730624,1754091032450,-460.0,0.00019239,2]
[376730625,1754091032459,-650.75,0.00019239,2]
[376730627,1754091032468,-460.0,0.00019239,2]
[376730629,1754091032478,-460.0,0.00019239,2]